[Event "Titled Tuesday Blitz May 2 Early 2023"]
[White "Klimkowski, Jan"]
[Black "Kubicka, Anna"]
[WhiteFideId "21856222"]
[BlackFideId "1152254"]
[WhiteElo "2331"]
[BlackElo "2144"]
[Result "1-0"]
[Round "04"]
[TimeControl "180+2"]
[Date "2023.05.02"]
[WhiteClock "0:00:17"]
[BlackClock "0:00:11"]

1. e4 {[%clk 0:03:00]}  c5 {[%clk 0:02:59]} 2. Nf3 {[%clk 0:03:01]}  d6 {[%clk 0:02:59]} 3. Nc3 {[%clk 0:02:55]}  Nf6 {[%clk 0:02:59]} 4. e5 {[%clk 0:02:56]}  dxe5 {[%clk 0:02:57]} 5. Nxe5 {[%clk 0:02:57]}  e6 {[%clk 0:02:52]} 6. g3 {[%clk 0:02:55]}  Be7 {[%clk 0:02:48]} 7. Bg2 {[%clk 0:02:56]}  O-O {[%clk 0:02:45]} 8. O-O {[%clk 0:02:56]}  Qc7 {[%clk 0:02:38]} 9. Qe2 {[%clk 0:02:46]}  a6 {[%clk 0:02:34]} 10. d3 {[%clk 0:02:46]}  Nbd7 {[%clk 0:02:27]} 11. Nc4 {[%clk 0:02:45]}  Nb6 {[%clk 0:02:07]} 12. Bf4 {[%clk 0:02:43]}  Qd8 {[%clk 0:02:07]} 13. Rad1 {[%clk 0:02:32]}  Nbd5 {[%clk 0:02:00]} 14. Nxd5 {[%clk 0:02:19]}  Nxd5 {[%clk 0:01:58]} 15. Bd2 {[%clk 0:02:19]}  Bf6 {[%clk 0:01:33]} 16. Ne5 {[%clk 0:01:58]}  Qc7 {[%clk 0:01:33]} 17. Rfe1 {[%clk 0:01:58]}  Bd7 {[%clk 0:00:28]} 18. c4 {[%clk 0:01:50]}  Ne7 {[%clk 0:00:26]} 19. Bf4 {[%clk 0:01:47]}  Qc8 {[%clk 0:00:25]} 20. Ng4 {[%clk 0:01:43]}  Bd4 {[%clk 0:00:20]} 21. Bd6 {[%clk 0:01:37]}  Re8 {[%clk 0:00:18]} 22. Be5 {[%clk 0:01:36]}  Nc6 {[%clk 0:00:17]} 23. Bxc6 {[%clk 0:01:20]}  Bxc6 {[%clk 0:00:18]} 24. Bxd4 {[%clk 0:01:21]}  cxd4 {[%clk 0:00:18]} 25. Ne5 {[%clk 0:01:16]}  Qc7 {[%clk 0:00:18]} 26. Qg4 {[%clk 0:01:14]}  Rad8 {[%clk 0:00:17]} 27. b4 {[%clk 0:01:10]}  b6 {[%clk 0:00:17]} 28. Nxc6 {[%clk 0:01:08]}  Qxc6 {[%clk 0:00:18]} 29. Qg5 {[%clk 0:01:05]}  f6 {[%clk 0:00:17]} 30. Qg4 {[%clk 0:01:04]}  e5 {[%clk 0:00:17]} 31. Qe4 {[%clk 0:01:00]}  Qxe4 {[%clk 0:00:16]} 32. Rxe4 {[%clk 0:01:01]}  Kf7 {[%clk 0:00:16]} 33. Rde1 {[%clk 0:01:01]}  Rc8 {[%clk 0:00:15]} 34. a3 {[%clk 0:00:59]}  Re7 {[%clk 0:00:14]} 35. f4 {[%clk 0:00:58]}  Rce8 {[%clk 0:00:14]} 36. fxe5 {[%clk 0:00:55]}  Rxe5 {[%clk 0:00:14]} 37. Rxe5 {[%clk 0:00:55]}  fxe5 {[%clk 0:00:14]} 38. Kf2 {[%clk 0:00:55]}  Ke6 {[%clk 0:00:14]} 39. Kg2 {[%clk 0:00:52]}  Rf8 {[%clk 0:00:14]} 40. h4 {[%clk 0:00:48]}  g6 {[%clk 0:00:13]} 41. Rf1 {[%clk 0:00:30]}  Rf5 {[%clk 0:00:14]} 42. g4 {[%clk 0:00:25]}  Rf4 {[%clk 0:00:10]} 43. Rxf4 {[%clk 0:00:20]}  exf4 {[%clk 0:00:11]} 44. Kf3 {[%clk 0:00:21]}  Ke5 {[%clk 0:00:11]} 45. g5 {[%clk 0:00:19]}  a5 {[%clk 0:00:10]} 46. c5 {[%clk 0:00:16]}  axb4 {[%clk 0:00:10]} 47. cxb6 {[%clk 0:00:14]}  Kd6 {[%clk 0:00:08]} 48. axb4 {[%clk 0:00:14]}  Kc6 {[%clk 0:00:08]} 49. Kxf4 {[%clk 0:00:15]}  Kxb6 {[%clk 0:00:09]} 50. Ke4 {[%clk 0:00:15]}  Kb5 {[%clk 0:00:10]} 51. Kxd4 {[%clk 0:00:16]}  Kxb4 {[%clk 0:00:11]} 52. Ke5 {[%clk 0:00:17]} 1-0


[Site "https://www.chess.com"]

[Event "Titled Tuesday Blitz May 2 Early 2023"]
[White "Seo, Jung Min"]
[Black "Erzhanov, Arman"]
[WhiteFideId "1734687"]
[BlackFideId "4138821"]
[WhiteElo "2468"]
[BlackElo "2138"]
[Result "1-0"]
[Round "04"]
[TimeControl "180+2"]
[Date "2023.05.02"]
[WhiteClock "0:01:00"]
[BlackClock "0:00:08"]

1. d4 {[%clk 0:02:59]}  d6 {[%clk 0:02:59]} 2. Nf3 {[%clk 0:02:58]}  g6 {[%clk 0:03:00]} 3. g3 {[%clk 0:02:58]}  Bg7 {[%clk 0:02:59]} 4. Bg2 {[%clk 0:02:58]}  Nd7 {[%clk 0:02:59]} 5. O-O {[%clk 0:02:58]}  e5 {[%clk 0:03:00]} 6. e4 {[%clk 0:02:55]}  Ne7 {[%clk 0:03:00]} 7. Re1 {[%clk 0:02:54]}  O-O {[%clk 0:03:00]} 8. c3 {[%clk 0:02:49]}  Re8 {[%clk 0:02:59]} 9. Be3 {[%clk 0:02:49]}  b6 {[%clk 0:02:58]} 10. Nbd2 {[%clk 0:02:48]}  Bb7 {[%clk 0:02:57]} 11. Qc2 {[%clk 0:02:49]}  a6 {[%clk 0:02:56]} 12. Rad1 {[%clk 0:02:48]}  Rc8 {[%clk 0:02:48]} 13. Bh3 {[%clk 0:02:46]}  Rb8 {[%clk 0:02:44]} 14. dxe5 {[%clk 0:02:41]}  Nxe5 {[%clk 0:02:44]} 15. Nxe5 {[%clk 0:02:41]}  Bxe5 {[%clk 0:02:44]} 16. Nf3 {[%clk 0:02:37]}  Bg7 {[%clk 0:02:44]} 17. Bd4 {[%clk 0:02:36]}  Nc6 {[%clk 0:02:36]} 18. Bxg7 {[%clk 0:02:36]}  Kxg7 {[%clk 0:02:37]} 19. Bg2 {[%clk 0:02:35]}  Qf6 {[%clk 0:02:32]} 20. Nd4 {[%clk 0:02:28]}  Re7 {[%clk 0:02:26]} 21. b3 {[%clk 0:02:16]}  Rbe8 {[%clk 0:02:27]} 22. f4 {[%clk 0:02:08]}  Nxd4 {[%clk 0:01:56]} 23. cxd4 {[%clk 0:02:08]}  Qe6 {[%clk 0:01:28]} 24. d5 {[%clk 0:01:57]}  Qg4 {[%clk 0:01:25]} 25. Qd3 {[%clk 0:01:54]}  Qd7 {[%clk 0:01:18]} 26. Qd4+ {[%clk 0:01:50]}  f6 {[%clk 0:01:17]} 27. h4 {[%clk 0:01:46]}  Kf7 {[%clk 0:01:16]} 28. Kh2 {[%clk 0:01:45]}  Bc8 {[%clk 0:01:17]} 29. Rc1 {[%clk 0:01:44]}  Qb5 {[%clk 0:01:07]} 30. a4 {[%clk 0:01:41]}  Qd7 {[%clk 0:00:56]} 31. Rc3 {[%clk 0:01:36]}  Kg7 {[%clk 0:00:56]} 32. Rec1 {[%clk 0:01:35]}  Qd8 {[%clk 0:00:54]} 33. b4 {[%clk 0:01:33]}  Rf8 {[%clk 0:00:53]} 34. a5 {[%clk 0:01:32]}  b5 {[%clk 0:00:52]} 35. Re3 {[%clk 0:01:30]}  Qe8 {[%clk 0:00:47]} 36. Rce1 {[%clk 0:01:26]}  Rff7 {[%clk 0:00:46]} 37. e5 {[%clk 0:01:19]}  dxe5 {[%clk 0:00:43]} 38. fxe5 {[%clk 0:01:20]}  fxe5 {[%clk 0:00:35]} 39. Rxe5 {[%clk 0:01:19]}  Kg8 {[%clk 0:00:35]} 40. d6 {[%clk 0:01:12]}  cxd6 {[%clk 0:00:22]} 41. Qxd6 {[%clk 0:01:12]}  Rxe5 {[%clk 0:00:16]} 42. Rxe5 {[%clk 0:01:11]}  Qf8 {[%clk 0:00:16]} 43. Qd4 {[%clk 0:01:03]}  Rd7 {[%clk 0:00:15]} 44. Bd5+ {[%clk 0:01:02]}  Rxd5 {[%clk 0:00:10]} 45. Rxd5 {[%clk 0:01:00]}  Be6 {[%clk 0:00:08]} 46. Rd8 {[%clk 0:01:00]} 1-0


[Site "https://www.chess.com"]

[Event "Titled Tuesday Blitz May 2 Early 2023"]
[White "Kvaloy, Aksel Bu"]
[Black "Hnydiuk, Aleksander"]
[WhiteFideId "1528815"]
[BlackFideId "1109057"]
[WhiteElo "2208"]
[BlackElo "2374"]
[Result "0-1"]
[Round "04"]
[TimeControl "180+2"]
[Date "2023.05.02"]
[WhiteClock "0:00:02"]
[BlackClock "0:00:07"]

1. e4 {[%clk 0:03:00]}  Nf6 {[%clk 0:02:51]} 2. e5 {[%clk 0:03:00]}  Nd5 {[%clk 0:02:51]} 3. d4 {[%clk 0:03:01]}  d6 {[%clk 0:02:51]} 4. c4 {[%clk 0:03:01]}  Nb6 {[%clk 0:02:51]} 5. exd6 {[%clk 0:03:01]}  cxd6 {[%clk 0:02:49]} 6. a4 {[%clk 0:03:02]}  g6 {[%clk 0:02:49]} 7. Nc3 {[%clk 0:03:00]}  Bg7 {[%clk 0:02:47]} 8. a5 {[%clk 0:03:00]}  N6d7 {[%clk 0:02:47]} 9. Nf3 {[%clk 0:03:00]}  O-O {[%clk 0:02:46]} 10. Be2 {[%clk 0:03:00]}  Nc6 {[%clk 0:02:45]} 11. O-O {[%clk 0:02:59]}  Nxa5 {[%clk 0:02:40]} 12. d5 {[%clk 0:02:58]}  b6 {[%clk 0:02:22]} 13. Ra3 {[%clk 0:02:57]}  Ne5 {[%clk 0:02:12]} 14. Nxe5 {[%clk 0:02:47]}  Bxe5 {[%clk 0:02:13]} 15. b4 {[%clk 0:02:47]}  Nb7 {[%clk 0:02:06]} 16. Ne4 {[%clk 0:02:41]}  a5 {[%clk 0:02:01]} 17. f4 {[%clk 0:02:15]}  Bg7 {[%clk 0:01:59]} 18. f5 {[%clk 0:02:14]}  Bxf5 {[%clk 0:01:58]} 19. Rxf5 {[%clk 0:02:14]}  gxf5 {[%clk 0:01:58]} 20. Rg3 {[%clk 0:02:12]}  Kh8 {[%clk 0:01:47]} 21. Ng5 {[%clk 0:02:11]}  e5 {[%clk 0:01:40]} 22. Qf1 {[%clk 0:02:01]}  f4 {[%clk 0:01:28]} 23. Bd3 {[%clk 0:01:59]}  axb4 {[%clk 0:01:07]} 24. Nxh7 {[%clk 0:01:07]}  Ra1 {[%clk 0:01:04]} 25. Rh3 {[%clk 0:01:05]}  Kg8 {[%clk 0:00:56]} 26. Qd1 {[%clk 0:01:01]}  e4 {[%clk 0:00:48]} 27. Bxe4 {[%clk 0:00:58]}  f5 {[%clk 0:00:45]} 28. Qh5 {[%clk 0:00:30]}  Rxc1+ {[%clk 0:00:40]} 29. Kf2 {[%clk 0:00:30]}  fxe4 {[%clk 0:00:28]} 30. Ng5 {[%clk 0:00:26]}  Rf6 {[%clk 0:00:21]} 31. Ne6 {[%clk 0:00:17]}  Rxe6 {[%clk 0:00:14]} 32. dxe6 {[%clk 0:00:18]}  Qf6 {[%clk 0:00:13]} 33. Qe8+ {[%clk 0:00:18]}  Qf8 {[%clk 0:00:11]} 34. Qg6 {[%clk 0:00:15]}  Qf6 {[%clk 0:00:09]} 35. Qe8+ {[%clk 0:00:12]}  Bf8 {[%clk 0:00:09]} 36. e7 {[%clk 0:00:02]}  Qd4+ {[%clk 0:00:08]} 37. Ke2 {[%clk 0:00:02]}  Rc2+ {[%clk 0:00:09]} 38. Ke1 {[%clk 0:00:01]}  Qf2+ {[%clk 0:00:07]} 39. Kd1 {[%clk 0:00:02]}  Qd2# {[%clk 0:00:07]} 0-1


[Site "https://www.chess.com"]

[Event "Titled Tuesday Blitz May 2 Early 2023"]
[White "Mrudul Dehankar"]
[Black "Lavrik, Dmitry"]
[WhiteFideId "25096990"]
[BlackFideId "24113190"]
[WhiteElo "2139"]
[BlackElo "2345"]
[Result "1-0"]
[Round "04"]
[TimeControl "180+2"]
[Date "2023.05.02"]
[WhiteClock "0:00:09"]
[BlackClock "0:00:12"]

1. e4 {[%clk 0:02:50]}  c5 {[%clk 0:02:57]} 2. Nf3 {[%clk 0:02:50]}  d6 {[%clk 0:02:57]} 3. d4 {[%clk 0:02:50]}  cxd4 {[%clk 0:02:56]} 4. Nxd4 {[%clk 0:02:51]}  Nf6 {[%clk 0:02:57]} 5. Nc3 {[%clk 0:02:51]}  Nc6 {[%clk 0:02:56]} 6. Bg5 {[%clk 0:02:50]}  e6 {[%clk 0:02:55]} 7. f4 {[%clk 0:02:49]}  Qa5 {[%clk 0:02:48]} 8. Qd2 {[%clk 0:02:45]}  Be7 {[%clk 0:02:32]} 9. O-O-O {[%clk 0:02:39]}  h6 {[%clk 0:02:30]} 10. Bxf6 {[%clk 0:01:55]}  gxf6 {[%clk 0:02:31]} 11. Nb3 {[%clk 0:01:54]}  Qb4 {[%clk 0:02:08]} 12. a3 {[%clk 0:01:51]}  Qb6 {[%clk 0:02:05]} 13. Nb5 {[%clk 0:01:50]}  d5 {[%clk 0:02:02]} 14. exd5 {[%clk 0:01:31]}  exd5 {[%clk 0:02:03]} 15. Qxd5 {[%clk 0:01:25]}  Be6 {[%clk 0:02:02]} 16. Qe4 {[%clk 0:01:22]}  f5 {[%clk 0:01:58]} 17. Qa4 {[%clk 0:01:18]}  O-O {[%clk 0:01:32]} 18. N5d4 {[%clk 0:01:08]}  Bf6 {[%clk 0:01:26]} 19. Nxe6 {[%clk 0:01:03]}  fxe6 {[%clk 0:01:27]} 20. Bc4 {[%clk 0:01:02]}  Rfe8 {[%clk 0:01:20]} 21. Rhe1 {[%clk 0:00:58]}  Kf7 {[%clk 0:01:11]} 22. Rd6 {[%clk 0:00:16]}  Qf2 {[%clk 0:01:01]} 23. Rdxe6 {[%clk 0:00:16]}  Rxe6 {[%clk 0:00:58]} 24. Rxe6 {[%clk 0:00:14]}  Kg6 {[%clk 0:00:45]} 25. Bd3 {[%clk 0:00:11]}  Rd8 {[%clk 0:00:40]} 26. Qc4 {[%clk 0:00:10]}  Nd4 {[%clk 0:00:34]} 27. Nxd4 {[%clk 0:00:08]}  Rxd4 {[%clk 0:00:30]} 28. Qb5 {[%clk 0:00:08]}  Rxf4 {[%clk 0:00:27]} 29. Kb1 {[%clk 0:00:08]}  Qd4 {[%clk 0:00:25]} 30. Ka2 {[%clk 0:00:08]}  Rf2 {[%clk 0:00:22]} 31. g4 {[%clk 0:00:07]}  Qxg4 {[%clk 0:00:22]} 32. Qe5 {[%clk 0:00:07]}  Qg5 {[%clk 0:00:19]} 33. Rxf6+ {[%clk 0:00:08]}  Qxf6 {[%clk 0:00:19]} 34. Qg3+ {[%clk 0:00:08]}  Kf7 {[%clk 0:00:16]} 35. Qxf2 {[%clk 0:00:09]}  Qe6+ {[%clk 0:00:17]} 36. b3 {[%clk 0:00:09]}  Kf6 {[%clk 0:00:17]} 37. Qf4 {[%clk 0:00:10]}  Kg6 {[%clk 0:00:16]} 38. h4 {[%clk 0:00:09]}  Qf6 {[%clk 0:00:14]} 39. h5+ {[%clk 0:00:09]}  Kxh5 {[%clk 0:00:15]} 40. Bxf5 {[%clk 0:00:10]}  Qg7 {[%clk 0:00:12]} 41. Qh2+ {[%clk 0:00:10]}  Kg5 {[%clk 0:00:12]} 42. Qg3+ {[%clk 0:00:09]} 1-0


[Site "https://www.chess.com"]

[Event "Titled Tuesday Blitz May 2 Early 2023"]
[White "Gritsenko, Nikolai"]
[Black "Andreev, Konstantin"]
[WhiteFideId "14112493"]
[BlackFideId "24239305"]
[WhiteElo "2389"]
[BlackElo "2106"]
[Result "1-0"]
[Round "04"]
[TimeControl "180+2"]
[Date "2023.05.02"]
[WhiteClock "0:00:13"]
[BlackClock "0:00:17"]

1. d4 {[%clk 0:03:00]}  Nf6 {[%clk 0:02:59]} 2. Bg5 {[%clk 0:02:59]}  e6 {[%clk 0:02:59]} 3. Nd2 {[%clk 0:02:58]}  h6 {[%clk 0:02:59]} 4. Bxf6 {[%clk 0:02:54]}  Qxf6 {[%clk 0:03:00]} 5. e3 {[%clk 0:02:55]}  g6 {[%clk 0:03:01]} 6. c3 {[%clk 0:02:54]}  Bg7 {[%clk 0:03:01]} 7. f4 {[%clk 0:02:54]}  Qe7 {[%clk 0:03:02]} 8. Bd3 {[%clk 0:02:54]}  O-O {[%clk 0:03:02]} 9. Ngf3 {[%clk 0:02:54]}  d6 {[%clk 0:03:03]} 10. O-O {[%clk 0:02:47]}  Nd7 {[%clk 0:03:03]} 11. e4 {[%clk 0:02:46]}  f5 {[%clk 0:02:58]} 12. Qe2 {[%clk 0:02:41]}  Qf7 {[%clk 0:02:47]} 13. Rae1 {[%clk 0:02:37]}  Nf6 {[%clk 0:02:46]} 14. g3 {[%clk 0:02:22]}  Bd7 {[%clk 0:02:45]} 15. Nh4 {[%clk 0:02:10]}  Rae8 {[%clk 0:02:42]} 16. a3 {[%clk 0:02:00]}  Bc6 {[%clk 0:02:30]} 17. e5 {[%clk 0:01:55]}  Nd5 {[%clk 0:02:24]} 18. c4 {[%clk 0:01:49]}  Nb6 {[%clk 0:02:21]} 19. g4 {[%clk 0:01:43]}  Rd8 {[%clk 0:02:04]} 20. gxf5 {[%clk 0:01:36]}  gxf5 {[%clk 0:02:03]} 21. d5 {[%clk 0:01:28]}  exd5 {[%clk 0:01:38]} 22. e6 {[%clk 0:01:06]}  Bd4+ {[%clk 0:01:34]} 23. Kh1 {[%clk 0:01:02]}  Qe7 {[%clk 0:01:29]} 24. Nxf5 {[%clk 0:00:51]}  dxc4+ {[%clk 0:01:28]} 25. Be4 {[%clk 0:00:50]}  Rxf5 {[%clk 0:01:27]} 26. Qg4+ {[%clk 0:00:45]}  Rg5 {[%clk 0:01:09]} 27. fxg5 {[%clk 0:00:38]}  Qxg5 {[%clk 0:01:10]} 28. Qf3 {[%clk 0:00:31]}  Kh8 {[%clk 0:00:46]} 29. Bxc6 {[%clk 0:00:27]}  bxc6 {[%clk 0:00:45]} 30. Ne4 {[%clk 0:00:27]}  Qg7 {[%clk 0:00:43]} 31. Ng3 {[%clk 0:00:23]}  Re8 {[%clk 0:00:42]} 32. Nf5 {[%clk 0:00:21]}  Qf6 {[%clk 0:00:37]} 33. Nxd4 {[%clk 0:00:19]}  Qxd4 {[%clk 0:00:38]} 34. e7 {[%clk 0:00:19]}  Qd5 {[%clk 0:00:21]} 35. Qxd5 {[%clk 0:00:13]}  Nxd5 {[%clk 0:00:17]} 36. Rf8+ {[%clk 0:00:13]} 1-0


[Site "https://www.chess.com"]

[Event "Titled Tuesday Blitz May 2 Early 2023"]
[White "Averjanov, Alexey"]
[Black "Reefat, Bin-Sattar"]
[WhiteFideId "14109867"]
[BlackFideId "10200207"]
[WhiteElo "2399"]
[BlackElo "2462"]
[Result "1-0"]
[Round "04"]
[TimeControl "180+2"]
[Date "2023.05.02"]
[WhiteClock "0:01:21"]
[BlackClock "0:00:03"]

1. d4 {[%clk 0:03:00]}  e6 {[%clk 0:02:59]} 2. c4 {[%clk 0:03:01]}  b6 {[%clk 0:02:59]} 3. Nf3 {[%clk 0:03:01]}  Bb7 {[%clk 0:02:59]} 4. Nbd2 {[%clk 0:03:01]}  f5 {[%clk 0:02:54]} 5. g3 {[%clk 0:03:01]}  Nc6 {[%clk 0:02:52]} 6. e3 {[%clk 0:02:50]}  Nf6 {[%clk 0:02:51]} 7. Bg2 {[%clk 0:02:50]}  Be7 {[%clk 0:02:50]} 8. O-O {[%clk 0:02:49]}  O-O {[%clk 0:02:50]} 9. b3 {[%clk 0:02:48]}  Qe8 {[%clk 0:02:49]} 10. Bb2 {[%clk 0:02:48]}  Nd8 {[%clk 0:02:35]} 11. Ne5 {[%clk 0:02:44]}  Bxg2 {[%clk 0:02:34]} 12. Kxg2 {[%clk 0:02:45]}  d6 {[%clk 0:02:33]} 13. Nd3 {[%clk 0:02:45]}  a5 {[%clk 0:02:31]} 14. a4 {[%clk 0:02:39]}  Qg6 {[%clk 0:01:49]} 15. Qe2 {[%clk 0:02:34]}  Qh6 {[%clk 0:01:48]} 16. e4 {[%clk 0:02:29]}  fxe4 {[%clk 0:01:00]} 17. Nxe4 {[%clk 0:02:30]}  c5 {[%clk 0:00:54]} 18. Rae1 {[%clk 0:02:21]}  Ra7 {[%clk 0:00:47]} 19. f4 {[%clk 0:02:08]}  Nxe4 {[%clk 0:00:23]} 20. Qxe4 {[%clk 0:02:09]}  Bf6 {[%clk 0:00:22]} 21. Re2 {[%clk 0:02:05]}  Raf7 {[%clk 0:00:17]} 22. Rfe1 {[%clk 0:02:04]}  Kh8 {[%clk 0:00:17]} 23. Re3 {[%clk 0:01:52]}  Qh5 {[%clk 0:00:16]} 24. R3e2 {[%clk 0:01:43]}  Re7 {[%clk 0:00:08]} 25. h3 {[%clk 0:01:37]}  Qh6 {[%clk 0:00:04]} 26. Kh2 {[%clk 0:01:32]}  Qh5 {[%clk 0:00:03]} 27. g4 {[%clk 0:01:31]}  Qh4 {[%clk 0:00:03]} 28. g5 {[%clk 0:01:25]}  Bxd4 {[%clk 0:00:03]} 29. Bxd4 {[%clk 0:01:25]}  cxd4 {[%clk 0:00:03]} 30. Qxd4 {[%clk 0:01:26]}  Nc6 {[%clk 0:00:03]} 31. Qxd6 {[%clk 0:01:21]} 1-0


[Site "https://www.chess.com"]

[Event "Titled Tuesday Blitz May 2 Early 2023"]
[White "Baches Garcia, Guillermo"]
[Black "Sammed Jaykumar, Shete"]
[WhiteFideId "2209764"]
[BlackFideId "5073421"]
[WhiteElo "2334"]
[BlackElo "2278"]
[Result "0-1"]
[Round "04"]
[TimeControl "180+2"]
[Date "2023.05.02"]
[WhiteClock "0:00:22"]
[BlackClock "0:00:39"]

1. e4 {[%clk 0:03:00]}  c5 {[%clk 0:02:58]} 2. Nf3 {[%clk 0:03:00]}  d6 {[%clk 0:02:59]} 3. d4 {[%clk 0:03:01]}  cxd4 {[%clk 0:02:59]} 4. Nxd4 {[%clk 0:03:01]}  Nf6 {[%clk 0:03:00]} 5. Nc3 {[%clk 0:03:02]}  a6 {[%clk 0:03:00]} 6. Be3 {[%clk 0:03:02]}  e5 {[%clk 0:02:59]} 7. Nb3 {[%clk 0:03:02]}  Be6 {[%clk 0:02:56]} 8. f3 {[%clk 0:03:03]}  h5 {[%clk 0:02:56]} 9. Nd5 {[%clk 0:03:01]}  Nxd5 {[%clk 0:02:53]} 10. exd5 {[%clk 0:03:01]}  Bf5 {[%clk 0:02:53]} 11. Bd3 {[%clk 0:03:01]}  Bxd3 {[%clk 0:02:44]} 12. Qxd3 {[%clk 0:03:01]}  Nd7 {[%clk 0:02:45]} 13. O-O-O {[%clk 0:03:01]}  g6 {[%clk 0:02:43]} 14. Kb1 {[%clk 0:03:00]}  Bh6 {[%clk 0:02:38]} 15. Bf2 {[%clk 0:02:54]}  Rc8 {[%clk 0:02:32]} 16. h4 {[%clk 0:02:47]}  b5 {[%clk 0:02:29]} 17. g4 {[%clk 0:02:42]}  hxg4 {[%clk 0:02:22]} 18. h5 {[%clk 0:02:32]}  Qf6 {[%clk 0:02:18]} 19. hxg6 {[%clk 0:02:24]}  fxg6 {[%clk 0:02:19]} 20. fxg4 {[%clk 0:02:15]}  Qxf2 {[%clk 0:01:56]} 21. Rdf1 {[%clk 0:01:45]}  Qg2 {[%clk 0:01:46]} 22. g5 {[%clk 0:01:17]}  Bg7 {[%clk 0:01:26]} 23. Qxg6+ {[%clk 0:01:09]}  Kd8 {[%clk 0:01:26]} 24. Rhg1 {[%clk 0:00:54]}  Qxd5 {[%clk 0:01:26]} 25. Qxg7 {[%clk 0:00:52]}  Rh2 {[%clk 0:01:26]} 26. Rf7 {[%clk 0:00:44]}  Rcxc2 {[%clk 0:00:51]} 27. Rxd7+ {[%clk 0:00:34]}  Kc8 {[%clk 0:00:50]} 28. Rc1 {[%clk 0:00:30]}  Qe4 {[%clk 0:00:41]} 29. Ka1 {[%clk 0:00:21]}  Rxc1+ {[%clk 0:00:38]} 30. Nxc1 {[%clk 0:00:22]}  Qc2 {[%clk 0:00:39]} 0-1


[Site "https://www.chess.com"]

[Event "Titled Tuesday Blitz May 2 Early 2023"]
[White "Castellanos Gomez, Alejandro"]
[Black "Levitskiy, Andrey"]
[WhiteFideId "22284141"]
[BlackFideId "14132885"]
[WhiteElo "2158"]
[BlackElo "2341"]
[Result "0-1"]
[Round "04"]
[TimeControl "180+2"]
[Date "2023.05.02"]
[WhiteClock "0:00:02"]
[BlackClock "0:00:06"]

1. d4 {[%clk 0:03:00]}  Nf6 {[%clk 0:02:58]} 2. Bf4 {[%clk 0:03:01]}  d5 {[%clk 0:02:58]} 3. e3 {[%clk 0:03:01]}  c5 {[%clk 0:02:59]} 4. c3 {[%clk 0:03:01]}  Nc6 {[%clk 0:02:59]} 5. Nd2 {[%clk 0:03:01]}  cxd4 {[%clk 0:02:59]} 6. exd4 {[%clk 0:03:01]}  Bf5 {[%clk 0:03:00]} 7. Ngf3 {[%clk 0:02:59]}  e6 {[%clk 0:03:00]} 8. Be2 {[%clk 0:02:59]}  Bd6 {[%clk 0:03:00]} 9. Bg3 {[%clk 0:02:58]}  O-O {[%clk 0:02:58]} 10. O-O {[%clk 0:02:57]}  h6 {[%clk 0:02:54]} 11. Re1 {[%clk 0:02:56]}  Re8 {[%clk 0:02:50]} 12. b4 {[%clk 0:02:38]}  Rc8 {[%clk 0:02:43]} 13. a3 {[%clk 0:02:32]}  a6 {[%clk 0:02:30]} 14. Bf1 {[%clk 0:02:30]}  Re7 {[%clk 0:01:41]} 15. Rc1 {[%clk 0:02:26]}  Rec7 {[%clk 0:01:41]} 16. Nb3 {[%clk 0:02:06]}  Ne4 {[%clk 0:01:31]} 17. Nc5 {[%clk 0:02:03]}  Ne7 {[%clk 0:01:01]} 18. Ne5 {[%clk 0:01:51]}  b6 {[%clk 0:00:43]} 19. Nxe4 {[%clk 0:01:39]}  Bxe4 {[%clk 0:00:43]} 20. Bxa6 {[%clk 0:01:37]}  Ra8 {[%clk 0:00:42]} 21. b5 {[%clk 0:01:13]}  f6 {[%clk 0:00:40]} 22. Nd3 {[%clk 0:01:07]}  Bxg3 {[%clk 0:00:34]} 23. hxg3 {[%clk 0:01:07]}  Qd6 {[%clk 0:00:35]} 24. Nb4 {[%clk 0:01:03]}  Rc4 {[%clk 0:00:30]} 25. Qe2 {[%clk 0:01:02]}  Kf7 {[%clk 0:00:14]} 26. Qe3 {[%clk 0:00:29]}  Ra7 {[%clk 0:00:14]} 27. Re2 {[%clk 0:00:27]}  Rac7 {[%clk 0:00:13]} 28. Rb2 {[%clk 0:00:20]}  Nf5 {[%clk 0:00:13]} 29. Qd2 {[%clk 0:00:19]}  Nxd4 {[%clk 0:00:13]} 30. cxd4 {[%clk 0:00:14]}  Rxc1+ {[%clk 0:00:13]} 31. Kh2 {[%clk 0:00:15]}  R1c4 {[%clk 0:00:08]} 32. Nc6 {[%clk 0:00:16]}  Kg8 {[%clk 0:00:07]} 33. Ra2 {[%clk 0:00:10]}  Qd7 {[%clk 0:00:07]} 34. a4 {[%clk 0:00:10]}  Qf7 {[%clk 0:00:07]} 35. g4 {[%clk 0:00:09]}  Qf8 {[%clk 0:00:05]} 36. f3 {[%clk 0:00:08]}  Qd6+ {[%clk 0:00:05]} 37. Kg1 {[%clk 0:00:05]}  Bg6 {[%clk 0:00:05]} 38. a5 {[%clk 0:00:06]}  bxa5 {[%clk 0:00:05]} 39. Qxa5 {[%clk 0:00:03]}  Be8 {[%clk 0:00:05]} 40. Qe1 {[%clk 0:00:03]}  Bxc6 {[%clk 0:00:04]} 41. bxc6 {[%clk 0:00:04]}  R4xc6 {[%clk 0:00:05]} 42. Bb5 {[%clk 0:00:04]}  Rc1 {[%clk 0:00:05]} 43. Ra8+ {[%clk 0:00:05]}  Kh7 {[%clk 0:00:05]} 44. Bd3+ {[%clk 0:00:05]}  f5 {[%clk 0:00:06]} 45. gxf5 {[%clk 0:00:02]}  Rxe1+ {[%clk 0:00:06]} 46. Kf2 {[%clk 0:00:02]}  exf5 {[%clk 0:00:06]} 47. Bxf5+ {[%clk 0:00:02]}  g6 {[%clk 0:00:06]} 0-1


[Site "https://www.chess.com"]

[Event "Titled Tuesday Blitz May 2 Early 2023"]
[White "Pujari, Rucha"]
[Black "Perez Gormaz, Matias"]
[WhiteFideId "5024528"]
[BlackFideId "3406342"]
[WhiteElo "2129"]
[BlackElo "2362"]
[Result "0-1"]
[Round "04"]
[TimeControl "180+2"]
[Date "2023.05.02"]
[WhiteClock "0:00:01"]
[BlackClock "0:00:08"]

1. d4 {[%clk 0:03:00]}  Nf6 {[%clk 0:02:59]} 2. c4 {[%clk 0:03:01]}  e6 {[%clk 0:02:59]} 3. Nf3 {[%clk 0:03:01]}  Bb4+ {[%clk 0:02:59]} 4. Bd2 {[%clk 0:03:01]}  Bxd2+ {[%clk 0:02:59]} 5. Qxd2 {[%clk 0:03:02]}  d5 {[%clk 0:02:58]} 6. Nc3 {[%clk 0:03:01]}  O-O {[%clk 0:02:57]} 7. Qc2 {[%clk 0:02:58]}  Nc6 {[%clk 0:02:16]} 8. a3 {[%clk 0:02:57]}  dxc4 {[%clk 0:02:09]} 9. e3 {[%clk 0:02:41]}  Na5 {[%clk 0:02:06]} 10. Ne5 {[%clk 0:02:28]}  c5 {[%clk 0:02:06]} 11. Rd1 {[%clk 0:02:26]}  Qc7 {[%clk 0:01:59]} 12. Nxc4 {[%clk 0:01:46]}  Nxc4 {[%clk 0:01:49]} 13. Bxc4 {[%clk 0:01:47]}  a6 {[%clk 0:01:50]} 14. Ne4 {[%clk 0:01:25]}  Nxe4 {[%clk 0:01:15]} 15. Qxe4 {[%clk 0:01:25]}  cxd4 {[%clk 0:01:07]} 16. Rxd4 {[%clk 0:01:21]}  b5 {[%clk 0:00:45]} 17. Qxa8 {[%clk 0:00:59]}  Bb7 {[%clk 0:00:45]} 18. Qa7 {[%clk 0:00:45]}  Ra8 {[%clk 0:00:44]} 19. Qxa8+ {[%clk 0:00:41]}  Bxa8 {[%clk 0:00:45]} 20. Be2 {[%clk 0:00:19]}  Bxg2 {[%clk 0:00:40]} 21. Rg1 {[%clk 0:00:19]}  Bd5 {[%clk 0:00:32]} 22. Kd2 {[%clk 0:00:19]}  Qxh2 {[%clk 0:00:25]} 23. Rc1 {[%clk 0:00:14]}  g6 {[%clk 0:00:25]} 24. e4 {[%clk 0:00:12]}  Qxf2 {[%clk 0:00:23]} 25. Kd3 {[%clk 0:00:06]}  Bc4+ {[%clk 0:00:20]} 26. Rcxc4 {[%clk 0:00:04]}  bxc4+ {[%clk 0:00:21]} 27. Rxc4 {[%clk 0:00:05]}  h5 {[%clk 0:00:19]} 28. Rc6 {[%clk 0:00:03]}  h4 {[%clk 0:00:14]} 29. Rxa6 {[%clk 0:00:03]}  h3 {[%clk 0:00:15]} 30. Rc6 {[%clk 0:00:01]}  Qg3+ {[%clk 0:00:13]} 31. Kd4 {[%clk 0:00:01]}  Qg1+ {[%clk 0:00:09]} 32. Kd3 {[%clk 0:00:01]}  h2 {[%clk 0:00:10]} 33. Bf3 {[%clk 0:00:01]}  Qg3 {[%clk 0:00:08]} 34. Ke2 {[%clk 0:00:01]}  Qxf3+ {[%clk 0:00:08]} 35. Kxf3 {[%clk 0:00:02]}  h1=Q+ {[%clk 0:00:09]} 36. Ke3 {[%clk 0:00:03]}  Qg1+ {[%clk 0:00:07]} 37. Kd3 {[%clk 0:00:02]}  Qb1+ {[%clk 0:00:07]} 38. Kc3 {[%clk 0:00:01]}  Qc1+ {[%clk 0:00:08]} 0-1


[Site "https://www.chess.com"]